[Event "St Kilda East and Caulfield Chess Club T3 2025 OPEN Thursdays"]
[Site "st kilda east, Australia"]
[Date "2025.08.14"]
[Round "3.6"]
[White "Bo, Jamie"]
[Black "Beckman, John"]
[Result "0-1"]
[TimeControl "60 minutes per player per game plus 10 seconds from move 1"]
[WhiteElo "546"]
[BlackElo "1201"]

1. e4 {[%clk 01:00:08]} {[%emt 00:00:02]} d6 {[%clk 00:59:44]} {[%emt
00:00:26]} 2. d4 {[%clk 00:59:36]} {[%emt 00:00:42]} Nf6 {[%clk 00:59:38]}
{[%emt 00:00:16]} 3. Nc3 {[%clk 00:58:46]} {[%emt 00:01:00]} c6 {[%clk
00:58:08]} {[%emt 00:01:40]} 4. Bg5 {[%clk 00:56:35]} {[%emt 00:02:21]} Qa5
{[%clk 00:57:41]} {[%emt 00:00:37]} 5. Bd2 {[%clk 00:55:06]} {[%emt 00:01:39]}
Qb6 {[%clk 00:54:46]} {[%emt 00:03:04]} 6. Rb1 {[%clk 00:48:35]} {[%emt
00:06:42]} e5 {[%clk 00:53:25]} {[%emt 00:01:30]} 7. Be3 {[%clk 00:46:22]}
{[%emt 00:02:23]} Ng4 {[%clk 00:52:01]} {[%emt 00:01:33]} 8. Be2 {[%clk
00:44:09]} {[%emt 00:02:22]} Nxe3 {[%clk 00:51:38]} {[%emt 00:00:34]} 9. fxe3
{[%clk 00:44:06]} {[%emt 00:00:12]} Be7 {[%clk 00:51:03]} {[%emt 00:00:46]} 10.
Nf3 {[%clk 00:43:56]} {[%emt 00:00:21]} O-O {[%clk 00:49:24]} {[%emt 00:01:49]}
11. O-O {[%clk 00:43:32]} {[%emt 00:00:33]} Bg4 {[%clk 00:46:49]} {[%emt
00:02:45]} 12. Qd3 {[%clk 00:41:41]} {[%emt 00:02:01]} Qc7 {[%clk 00:46:17]}
{[%emt 00:00:43]} 13. b3 {[%clk 00:36:44]} {[%emt 00:05:06]} Nd7 {[%clk
00:45:32]} {[%emt 00:00:55]} 14. Rbd1 {[%clk 00:34:34]} {[%emt 00:02:20]} Rad8
{[%clk 00:44:19]} {[%emt 00:01:23]} 15. Qd2 {[%clk 00:29:57]} {[%emt 00:04:46]}
h6 {[%clk 00:35:53]} {[%emt 00:08:37]} 16. a4 {[%clk 00:29:05]} {[%emt
00:01:03]} a5 {[%clk 00:35:06]} {[%emt 00:00:57]} 17. Bc4 {[%clk 00:28:03]}
{[%emt 00:01:12]} Nb6 {[%clk 00:34:25]} {[%emt 00:00:50]} 18. Be2 {[%clk
00:26:04]} {[%emt 00:02:09]} Be6 {[%clk 00:26:19]} {[%emt 00:08:17]} 19. Qe1
{[%clk 00:24:10]} {[%emt 00:02:04]} f5 {[%clk 00:23:42]} {[%emt 00:02:47]} 20.
exf5 {[%clk 00:23:22]} {[%emt 00:00:59]} Bxf5 {[%clk 00:23:21]} {[%emt
00:00:31]} 21. e4 {[%clk 00:22:15]} {[%emt 00:01:18]} Bh7 {[%clk 00:21:41]}
{[%emt 00:01:50]} 22. Qg3 {[%clk 00:21:53]} {[%emt 00:00:31]} Bf6 {[%clk
00:19:20]} {[%emt 00:02:32]} 23. dxe5 {[%clk 00:19:21]} {[%emt 00:02:43]} dxe5
{[%clk 00:19:07]} {[%emt 00:00:23]} 24. Nh4 {[%clk 00:18:41]} {[%emt 00:00:48]}
Rxd1 {[%clk 00:16:33]} {[%emt 00:02:45]} 25. Rxd1 {[%clk 00:18:41]} {[%emt
00:00:11]} Qe7 {[%clk 00:16:10]} {[%emt 00:00:31]} 26. Nf5 {[%clk 00:18:09]}
{[%emt 00:00:43]} Bxf5 {[%clk 00:16:05]} {[%emt 00:00:14]} 27. exf5 {[%clk
00:18:13]} {[%emt 00:00:06]} Qc5+ {[%clk 00:16:06]} {[%emt 00:00:09]} 28. Kh1
{[%clk 00:18:03]} {[%emt 00:00:20]} Nd5 {[%clk 00:15:17]} {[%emt 00:00:58]} 29.
Nxd5 {[%clk 00:17:42]} {[%emt 00:00:32]} cxd5 {[%clk 00:15:22]} {[%emt
00:00:05]} 30. Qd3 {[%clk 00:16:46]} {[%emt 00:01:05]} Rd8 {[%clk 00:14:56]}
{[%emt 00:00:36]} 31. Qd2 {[%clk 00:15:43]} {[%emt 00:01:12]} e4 {[%clk
00:14:23]} {[%emt 00:00:45]} 32. Rc1 {[%clk 00:13:40]} {[%emt 00:02:14]} Bg5
{[%clk 00:13:52]} {[%emt 00:00:40]} 33. Qd1 {[%clk 00:12:46]} {[%emt 00:01:03]}
Bxc1 {[%clk 00:13:31]} {[%emt 00:00:31]} 34. Qxc1 {[%clk 00:12:51]} {[%emt
00:00:06]} Rf8 {[%clk 00:12:51]} {[%emt 00:00:50]} 35. Bg4 {[%clk 00:11:25]}
{[%emt 00:01:36]} d4 {[%clk 00:11:46]} {[%emt 00:01:14]} 36. Qd2 {[%clk
00:10:41]} {[%emt 00:00:55]} e3 {[%clk 00:11:04]} {[%emt 00:00:52]} 37. Qd3
{[%clk 00:10:09]} {[%emt 00:00:43]} Kh8 {[%clk 00:09:11]} {[%emt 00:02:03]} 38.
h3 {[%clk 00:08:54]} {[%emt 00:01:25]} Qe5 {[%clk 00:08:38]} {[%emt 00:00:42]}
39. Kg1 {[%clk 00:08:18]} {[%emt 00:00:46]} Re8 {[%clk 00:08:19]} {[%emt
00:00:28]} 40. Be2 {[%clk 00:08:06]} {[%emt 00:00:22]} Rf8 {[%clk 00:07:57]}
{[%emt 00:00:31]} 41. Bg4 {[%clk 00:08:07]} {[%emt 00:00:10]} Qf4 {[%clk
00:07:46]} {[%emt 00:00:21]} 42. c3 {[%clk 00:07:22]} {[%emt 00:00:55]} Qf2+
{[%clk 00:07:25]} {[%emt 00:00:31]} 43. Kh2 {[%clk 00:07:05]} {[%emt 00:00:28]}
Qd2 {[%clk 00:06:28]} {[%emt 00:01:06]} 44. Qxd4 {[%clk 00:06:57]} {[%emt
00:00:18]} Qxd4 {[%clk 00:06:28]} {[%emt 00:00:10]} 45. cxd4 {[%clk 00:07:03]}
{[%emt 00:00:04]} Rd8 {[%clk 00:06:27]} {[%emt 00:00:11]} 46. Be2 {[%clk
00:06:10]} {[%emt 00:01:04]} Rxd4 {[%clk 00:06:24]} {[%emt 00:00:14]} 47. Kg3
{[%clk 00:06:16]} {[%emt 00:00:04]} Re4 {[%clk 00:05:31]} {[%emt 00:01:03]} 48.
Kf3 {[%clk 00:06:23]} {[%emt 00:00:03]} Re7 {[%clk 00:05:37]} {[%emt 00:00:04]}
49. g4 {[%clk 00:06:29]} {[%emt 00:00:05]} Kg8 {[%clk 00:05:35]} {[%emt
00:00:09]} 50. Kf4 {[%clk 00:06:33]} {[%emt 00:00:09]} Kf7 {[%clk 00:05:41]}
{[%emt 00:00:04]} 51. h4 {[%clk 00:06:25]} {[%emt 00:00:18]} Kf6 {[%clk
00:05:46]} {[%emt 00:00:04]} 52. g5+ {[%clk 00:06:12]} {[%emt 00:00:23]} hxg5+
{[%clk 00:05:49]} {[%emt 00:00:07]} 53. hxg5+ {[%clk 00:06:10]} {[%emt
00:00:12]} Kf7 {[%clk 00:05:47]} {[%emt 00:00:11]} 54. Bc4+ {[%clk 00:05:59]}
{[%emt 00:00:22]} Ke8 {[%clk 00:05:32]} {[%emt 00:00:25]} 55. Be2 {[%clk
00:05:48]} {[%emt 00:00:22]} b6 {[%clk 00:05:28]} {[%emt 00:00:14]} 56. Kf3
{[%clk 00:04:33]} {[%emt 00:01:25]} Kd7 {[%clk 00:05:02]} {[%emt 00:00:34]} 57.
Bc4 {[%clk 00:04:22]} {[%emt 00:00:21]} Kd8 {[%clk 00:03:28]} {[%emt 00:01:44]}
58. Be6 {[%clk 00:04:26]} {[%emt 00:00:07]} g6 {[%clk 00:02:34]} {[%emt
00:01:04]} 59. Ke2 {[%clk 00:04:02]} {[%emt 00:00:34]} gxf5 {[%clk 00:02:31]}
{[%emt 00:00:13]} 60. Bxf5 {[%clk 00:04:07]} {[%emt 00:00:06]} Ke8 {[%clk
00:02:32]} {[%emt 00:00:08]} 61. g6 {[%clk 00:04:00]} {[%emt 00:00:17]} Kf8
{[%clk 00:02:38]} {[%emt 00:00:03]} 62. Bd3 {[%clk 00:03:49]} {[%emt 00:00:20]}
Kg7 {[%clk 00:02:43]} {[%emt 00:00:06]} 63. Kd1 {[%clk 00:03:48]} {[%emt
00:00:12]} Re6 {[%clk 00:02:42]} {[%emt 00:00:11]} 64. Be2 {[%clk 00:03:45]}
{[%emt 00:00:14]} Kxg6 {[%clk 00:02:45]} {[%emt 00:00:07]} 65. Bc4 {[%clk
00:03:41]} {[%emt 00:00:14]} Re5 {[%clk 00:02:48]} {[%emt 00:00:07]} 66. Be2
{[%clk 00:03:36]} {[%emt 00:00:15]} Kg5 {[%clk 00:02:55]} {[%emt 00:00:02]} 67.
Kc2 {[%clk 00:03:44]} {[%emt 00:00:02]} Kf4 {[%clk 00:02:57]} {[%emt 00:00:08]}
68. Kd3 {[%clk 00:03:53]} {[%emt 00:00:02]} Rd5+ {[%clk 00:03:02]} {[%emt
00:00:06]} 69. Kc4 {[%clk 00:03:52]} {[%emt 00:00:11]} Rc5+ {[%clk 00:03:05]}
{[%emt 00:00:06]} 70. Kd4 {[%clk 00:03:55]} {[%emt 00:00:07]} Re5 {[%clk
00:03:07]} {[%emt 00:00:08]} 71. Kd3 {[%clk 00:04:02]} {[%emt 00:00:04]} Rd5+
{[%clk 00:03:07]} {[%emt 00:00:09]} 72. Kc4 {[%clk 00:04:10]} {[%emt 00:00:02]}
Rd2 {[%clk 00:03:16]} {[%emt 00:00:01]} 73. Bd3 {[%clk 00:04:09]} {[%emt
00:00:11]} Rxd3 {[%clk 00:03:16]} {[%emt 00:00:09]} 74. Kxd3 {[%clk 00:04:17]}
{[%emt 00:00:02]} Kf3 {[%emt 00:00:07]} 0-1